Department family,Entity,Date,Expense type,Expense area,Supplier,Transaction number,Amount
Department of Health,University Hospitals of Morecambe Bay NHS Foundation Trust,02-Nov-16,Rates,Estates & Facilities,BOROUGH OF BARROW-IN-FURNESS,1211559,56741
Department of Health,University Hospitals of Morecambe Bay NHS Foundation Trust,02-Nov-16,Managed Service Contract,Corporate,CARVETI PARTNERSHIP LTD,1211620,35135.9
Department of Health,University Hospitals of Morecambe Bay NHS Foundation Trust,02-Nov-16,Managed Service Contract,Corporate,CARVETI PARTNERSHIP LTD,1211623,69551.98
Department of Health,University Hospitals of Morecambe Bay NHS Foundation Trust,02-Nov-16,Agency Medical Staff - Management Costs,Trust Wide,HB RETINUE LTD,1210173,42985.85
Department of Health,University Hospitals of Morecambe Bay NHS Foundation Trust,02-Nov-16,Agency ODPs,Theatres,HB RETINUE LTD,1210175,26667.05
Department of Health,University Hospitals of Morecambe Bay NHS Foundation Trust,02-Nov-16,Agency Midwives,Womens & Childrens,HB RETINUE LTD,1210176,42242.38
Department of Health,University Hospitals of Morecambe Bay NHS Foundation Trust,02-Nov-16,Agency Nurses,Trust Wide,HB RETINUE LTD,1210177,28373.06
Department of Health,University Hospitals of Morecambe Bay NHS Foundation Trust,02-Nov-16,Building Services,Capital Services,INTEGRATED HEALTH PROJECTS,1211368,344615.65
Department of Health,University Hospitals of Morecambe Bay NHS Foundation Trust,02-Nov-16,Maintenance Contract,Information Technology,JAC COMPUTER SERVICES LTD,1207079,22764
Department of Health,University Hospitals of Morecambe Bay NHS Foundation Trust,02-Nov-16,Rates,Estates & Facilities,LANCASTER CITY COUNCIL,1211555,46801
Department of Health,University Hospitals of Morecambe Bay NHS Foundation Trust,02-Nov-16,NHS Product Sales,Trust Wide,NHS SUPPLY CHAIN,1210925,164114.09
Department of Health,University Hospitals of Morecambe Bay NHS Foundation Trust,02-Nov-16,Drugs,Pharmacy,PHARMAXO PHARMACY SERVICES LIMITED,1206943,31680
Department of Health,University Hospitals of Morecambe Bay NHS Foundation Trust,02-Nov-16,Drugs,Pharmacy,ROCHE PRODUCTS LTD,1205541,46635.9
Department of Health,University Hospitals of Morecambe Bay NHS Foundation Trust,02-Nov-16,Rates,Estates & Facilities,SOUTH LAKELAND DISTRICT COUNCIL,1211561,36654
Department of Health,University Hospitals of Morecambe Bay NHS Foundation Trust,04-Nov-16,Managed Service Contract,Corporate,CARVETI PARTNERSHIP LTD,1212230,212531.22
Department of Health,University Hospitals of Morecambe Bay NHS Foundation Trust,04-Nov-16,Managed Service Contract,Corporate,CARVETI PARTNERSHIP LTD,1212231,252061.2
Department of Health,University Hospitals of Morecambe Bay NHS Foundation Trust,09-Nov-16,Speech & Language Therapy Services,Core Clinical,CUMBRIA PARTNERSHIP NHS TRUST,1212335,30800.68
Department of Health,University Hospitals of Morecambe Bay NHS Foundation Trust,09-Nov-16,Blood & Blood components contract,Core Clinical,NHS BLOOD & TRANSPLANT,1211987,54352.67
Department of Health,University Hospitals of Morecambe Bay NHS Foundation Trust,09-Nov-16,Blood & Blood components contract,Core Clinical,NHS BLOOD & TRANSPLANT,1211988,35908.92
Department of Health,University Hospitals of Morecambe Bay NHS Foundation Trust,09-Nov-16,Recharge Specialist Registrars,Trust Wide,THE PENNINE ACUTE HOSPITALS NHS TRUST,1211993,83000
Department of Health,University Hospitals of Morecambe Bay NHS Foundation Trust,09-Nov-16,Recharge Specialist Registrars,Trust Wide,THE PENNINE ACUTE HOSPITALS NHS TRUST,1211995,307000
Department of Health,University Hospitals of Morecambe Bay NHS Foundation Trust,09-Nov-16,Recharge Specialist Registrars,Trust Wide,THE PENNINE ACUTE HOSPITALS NHS TRUST,1211997,67000
Department of Health,University Hospitals of Morecambe Bay NHS Foundation Trust,09-Nov-16,Boiler House Scheme,Capital Services,CHRIS BOWKER LIMITED,1213413,226008.37
Department of Health,University Hospitals of Morecambe Bay NHS Foundation Trust,09-Nov-16,IT Hardware,Information Technology,DELL COMPUTER CORPORATION LTD,1211372,44260.8
Department of Health,University Hospitals of Morecambe Bay NHS Foundation Trust,09-Nov-16,IT Hardware,Information Technology,DELL COMPUTER CORPORATION LTD,1211373,44260.8
Department of Health,University Hospitals of Morecambe Bay NHS Foundation Trust,09-Nov-16,Medical Equipment,Theatres,FUKUDA DENSHI UK,1211380,27600
Department of Health,University Hospitals of Morecambe Bay NHS Foundation Trust,09-Nov-16,Agency Medical Staff - Management Costs,Trust Wide,HB RETINUE LTD,1212118,62791.69
Department of Health,University Hospitals of Morecambe Bay NHS Foundation Trust,09-Nov-16,Agency Nurses,Trust Wide,HB RETINUE LTD,1212128,28336.61
Department of Health,University Hospitals of Morecambe Bay NHS Foundation Trust,09-Nov-16,Medical Equipment,Pathology,LEICA MICROSYSTEMS (UK) LTD,1208956,30712.64
Department of Health,University Hospitals of Morecambe Bay NHS Foundation Trust,09-Nov-16,Payroll Services,Trust Wide,NHS SHARED BUSINESS SERVICE LTD,1208995,23692.87
Department of Health,University Hospitals of Morecambe Bay NHS Foundation Trust,09-Nov-16,NHS Product Sales,Trust Wide,NHS SUPPLY CHAIN,1213540,137767.34
Department of Health,University Hospitals of Morecambe Bay NHS Foundation Trust,09-Nov-16,Drugs,Pharmacy,ROCHE PRODUCTS LTD,1207645,39628.32
Department of Health,University Hospitals of Morecambe Bay NHS Foundation Trust,09-Nov-16,Drugs,Pharmacy,ROCHE PRODUCTS LTD,1209114,38183.38
Department of Health,University Hospitals of Morecambe Bay NHS Foundation Trust,09-Nov-16,Building Services,Capital Services,VMC DEVELOPMENTS LTD,1213434,145152.23
Department of Health,University Hospitals of Morecambe Bay NHS Foundation Trust,16-Nov-16,MRI Scans (Mobile Unit),Radiology,ALLIANCE MEDICAL LTD,1208544,22680
Department of Health,University Hospitals of Morecambe Bay NHS Foundation Trust,16-Nov-16,Managed Service Contract,Pathology,BECKMAN COULTER UK LTD,1214119,160935.4
Department of Health,University Hospitals of Morecambe Bay NHS Foundation Trust,16-Nov-16,Laundry,Estates & Facilities,BERENDSEN UK LTD,1211643,24806.28
Department of Health,University Hospitals of Morecambe Bay NHS Foundation Trust,16-Nov-16,Laundry,Estates & Facilities,BERENDSEN UK LTD,1211974,35347.66
Department of Health,University Hospitals of Morecambe Bay NHS Foundation Trust,16-Nov-16,Orthotics Service,Trust Wide,CRISPIN ORTHOTICS LTD,1211448,29000.29
Department of Health,University Hospitals of Morecambe Bay NHS Foundation Trust,16-Nov-16,Disinfector/Washers,HSDU,DEKOMED LTD,1208955,29998.8
Department of Health,University Hospitals of Morecambe Bay NHS Foundation Trust,16-Nov-16,IT Hardware,Information Technology,DELL COMPUTER CORPORATION LTD,1214493,26916.48
Department of Health,University Hospitals of Morecambe Bay NHS Foundation Trust,16-Nov-16,Climate Change Levy,Estates & Facilities,DEPT OF ENERGY & CLIMATE CHANGE,1214702,245751
Department of Health,University Hospitals of Morecambe Bay NHS Foundation Trust,16-Nov-16,Electrical Services,Capital Services,EDWARD DEWHURST LTD,1214674,84587.88
Department of Health,University Hospitals of Morecambe Bay NHS Foundation Trust,16-Nov-16,Agency Medical Staff - Management Costs,Trust Wide,HB RETINUE LTD,1213778,103158.08
Department of Health,University Hospitals of Morecambe Bay NHS Foundation Trust,16-Nov-16,Agency Midwives,Womens & Childrens,HB RETINUE LTD,1213780,43386.85
Department of Health,University Hospitals of Morecambe Bay NHS Foundation Trust,16-Nov-16,Drugs,Pharmacy,HEALTHCARE AT HOME LIMITED,1213634,27120
Department of Health,University Hospitals of Morecambe Bay NHS Foundation Trust,16-Nov-16,Building Services,Capital Services,INTEGRATED HEALTH PROJECTS,1214472,300230.59
Department of Health,University Hospitals of Morecambe Bay NHS Foundation Trust,16-Nov-16,Drugs,Pharmacy,LLOYDS PHARMACY LIMITED,1214576,596855.81
Department of Health,University Hospitals of Morecambe Bay NHS Foundation Trust,16-Nov-16,NHS Product Sales,Trust Wide,NHS SUPPLY CHAIN,1214193,151427.93
Department of Health,University Hospitals of Morecambe Bay NHS Foundation Trust,16-Nov-16,Electricity,Estates & Facilities,NPOWER,1214774,77214.77
Department of Health,University Hospitals of Morecambe Bay NHS Foundation Trust,16-Nov-16,Electricity,Estates & Facilities,NPOWER,1214775,29203.72
Department of Health,University Hospitals of Morecambe Bay NHS Foundation Trust,16-Nov-16,Electricity,Estates & Facilities,NPOWER,1214776,65158.92
Department of Health,University Hospitals of Morecambe Bay NHS Foundation Trust,16-Nov-16,IT System - Monthly charge,Information Technology,SECTRA LIMITED,1206958,31298.35
Department of Health,University Hospitals of Morecambe Bay NHS Foundation Trust,23-Nov-16,CNST Premium,Corporate,NHS LITIGATION AUTHORITY,1215483,870576
Department of Health,University Hospitals of Morecambe Bay NHS Foundation Trust,23-Nov-16,Gas,Estates & Facilities,CORONA ENERGY RETAIL 4 LTD,1216359,31636.19
Department of Health,University Hospitals of Morecambe Bay NHS Foundation Trust,23-Nov-16,NHS Product Sales,Trust Wide,NHS SUPPLY CHAIN,1216164,151601.38
Department of Health,University Hospitals of Morecambe Bay NHS Foundation Trust,23-Nov-16,Sustainability Project Management,Trust Board,PRICEWATERHOUSECOOPERS,1215430,202885
Department of Health,University Hospitals of Morecambe Bay NHS Foundation Trust,23-Nov-16,Drugs,Pharmacy,ROCHE PRODUCTS LTD,1212364,36302.4
Department of Health,University Hospitals of Morecambe Bay NHS Foundation Trust,23-Nov-16,Drugs,Pharmacy,ROCHE PRODUCTS LTD,1213327,40578.55
Department of Health,University Hospitals of Morecambe Bay NHS Foundation Trust,23-Nov-16,Drugs,Pharmacy,ROCHE PRODUCTS LTD,1213585,31347.59
